[Event "Late-Titled-Tuesday-Blitz-June-18-2024"]
[Site "Chess.com"]
[Date "2024.06.18"]
[Round "7"]
[White "Sacbutt"]
[Black "enriquebutti"]
[Result "0-1"]
[WhiteElo "2291"]
[BlackElo "2108"]
[TimeControl "180+1"]
[EndTime "15:19:41 PDT"]
[Termination "enriquebutti won by checkmate"]

1. d4 {[%clk 0:02:59.5]} 1... Nf6 {[%clk 0:02:59]} 2. c4 {[%clk 0:02:58.5]} 2...
e6 {[%clk 0:02:58.4]} 3. Nf3 {[%clk 0:02:55.8]} 3... b6 {[%clk 0:02:58]} 4. g3
{[%clk 0:02:56.1]} 4... Ba6 {[%clk 0:02:57.4]} 5. b3 {[%clk 0:02:56.2]} 5...
Bb4+ {[%clk 0:02:55.6]} 6. Bd2 {[%clk 0:02:55.8]} 6... Be7 {[%clk 0:02:54.8]} 7.
Bg2 {[%clk 0:02:53.9]} 7... c6 {[%clk 0:02:54.4]} 8. O-O {[%clk 0:02:53.7]} 8...
d5 {[%clk 0:02:54]} 9. Qc2 {[%clk 0:02:41.6]} 9... Nbd7 {[%clk 0:02:50.5]} 10.
Rd1 {[%clk 0:02:34.9]} 10... Rc8 {[%clk 0:02:47.6]} 11. Bf4 {[%clk 0:02:28.4]}
11... c5 {[%clk 0:02:45.8]} 12. Nbd2 {[%clk 0:02:08.8]} 12... b5 {[%clk
0:02:41]} 13. cxd5 {[%clk 0:02:00.9]} 13... Nxd5 {[%clk 0:02:35.4]} 14. dxc5
{[%clk 0:02:00.3]} 14... Bxc5 {[%clk 0:02:31]} 15. Qb2 {[%clk 0:01:56.8]} 15...
O-O {[%clk 0:02:17.6]} 16. Ne4 {[%clk 0:01:55.2]} 16... Qb6 {[%clk 0:02:08.3]}
17. Nxc5 {[%clk 0:01:52.6]} 17... Nxc5 {[%clk 0:02:06]} 18. Be5 {[%clk
0:01:44.8]} 18... f6 {[%clk 0:01:49.6]} 19. Bd4 {[%clk 0:01:44.4]} 19... b4
{[%clk 0:01:39.8]} 20. e4 {[%clk 0:01:37.7]} 20... Nc3 {[%clk 0:01:36.4]} 21.
Re1 {[%clk 0:01:17.7]} 21... e5 {[%clk 0:01:33.1]} 22. Bxc3 {[%clk 0:01:11.5]}
22... bxc3 {[%clk 0:01:32.3]} 23. Qxc3 {[%clk 0:01:10.9]} 23... Nxe4 {[%clk
0:01:31.3]} 24. Qb2 {[%clk 0:01:09.7]} 24... Bd3 {[%clk 0:01:16.6]} 25. Rad1
{[%clk 0:01:03.5]} 25... Rc2 {[%clk 0:01:15.1]} 26. Qxc2 {[%clk 0:00:49.3]}
26... Bxc2 {[%clk 0:01:14.2]} 27. Rc1 {[%clk 0:00:49.8]} 27... Qxf2+ {[%clk
0:01:13]} 28. Kh1 {[%clk 0:00:50]} 28... Rd8 {[%clk 0:01:02]} 29. Rf1 {[%clk
0:00:43]} 29... Qc5 {[%clk 0:00:52.6]} 30. b4 {[%clk 0:00:24.5]} 30... Qc3
{[%clk 0:00:36.3]} 31. Ne1 {[%clk 0:00:19.6]} 31... Rd2 {[%clk 0:00:29.6]} 32.
Bxe4 {[%clk 0:00:19.1]} 32... Bxe4+ {[%clk 0:00:27.8]} 33. Kg1 {[%clk
0:00:13.3]} 33... Qb2 {[%clk 0:00:23.6]} 34. Rc8+ {[%clk 0:00:10.9]} 34... Kf7
{[%clk 0:00:23.1]} 35. Rc7+ {[%clk 0:00:11.4]} 35... Kg6 {[%clk 0:00:22.6]} 36.
Nf3 {[%clk 0:00:04.9]} 36... Bxf3 {[%clk 0:00:21.9]} 37. Rxf3 {[%clk 0:00:04.5]}
37... Rg2+ {[%clk 0:00:21]} 38. Kf1 {[%clk 0:00:03.7]} 38... Qe2# {[%clk
0:00:20.3]} 0-1

[Event "Late-Titled-Tuesday-Blitz-June-18-2024"]
[Site "Chess.com"]
[Date "2024.06.18"]
[Round "7"]
[White "unbreakablepawn35"]
[Black "ArmanGhevondyanchess"]
[Result "0-1"]
[WhiteElo "2441"]
[BlackElo "2589"]
[TimeControl "180+1"]
[EndTime "15:19:42 PDT"]
[Termination "ArmanGhevondyanchess won by resignation"]

1. c4 {[%clk 0:03:00.9]} 1... Nf6 {[%clk 0:02:59.5]} 2. Nc3 {[%clk 0:03:01]}
2... d5 {[%clk 0:02:59.9]} 3. cxd5 {[%clk 0:03:00.8]} 3... Nxd5 {[%clk
0:03:00.8]} 4. e4 {[%clk 0:03:01.3]} 4... Nxc3 {[%clk 0:03:01.3]} 5. dxc3 {[%clk
0:03:01.7]} 5... Qxd1+ {[%clk 0:03:00.4]} 6. Kxd1 {[%clk 0:03:02.6]} 6... Nd7
{[%clk 0:02:57.9]} 7. Kc2 {[%clk 0:03:02]} 7... e6 {[%clk 0:02:50.2]} 8. Bc4
{[%clk 0:02:56]} 8... Bc5 {[%clk 0:02:44.3]} 9. f3 {[%clk 0:02:54.4]} 9... Nb6
{[%clk 0:02:42.5]} 10. Bd3 {[%clk 0:02:43]} 10... a5 {[%clk 0:02:42.3]} 11. Ne2
{[%clk 0:02:42.5]} 11... a4 {[%clk 0:02:33.8]} 12. Bf4 {[%clk 0:02:41]} 12...
Bd6 {[%clk 0:02:23.6]} 13. Rhd1 {[%clk 0:02:23.8]} 13... e5 {[%clk 0:02:10.5]}
14. Be3 {[%clk 0:02:21.4]} 14... Be6 {[%clk 0:01:59.9]} 15. Bb5+ {[%clk
0:01:51.8]} 15... Ke7 {[%clk 0:01:57.5]} 16. Rd2 {[%clk 0:01:21.9]} 16... Nc4
{[%clk 0:01:35]} 17. Bxc4 {[%clk 0:01:17.5]} 17... Bxc4 {[%clk 0:01:35.9]} 18.
f4 {[%clk 0:00:47.5]} 18... f6 {[%clk 0:01:18.6]} 19. fxe5 {[%clk 0:00:46.7]}
19... fxe5 {[%clk 0:01:18.6]} 20. Bg5+ {[%clk 0:00:46]} 20... Ke6 {[%clk
0:00:58.7]} 21. Ng3 {[%clk 0:00:44.9]} 21... h6 {[%clk 0:00:52.7]} 22. Be3
{[%clk 0:00:44.5]} 22... g6 {[%clk 0:00:50.6]} 23. Rdd1 {[%clk 0:00:37.5]} 23...
h5 {[%clk 0:00:23.6]} 24. b3 {[%clk 0:00:27]} 24... Bb5 {[%clk 0:00:20.8]} 25.
c4 {[%clk 0:00:26.5]} 25... Bc6 {[%clk 0:00:21.3]} 26. h4 {[%clk 0:00:25.3]}
26... Be7 {[%clk 0:00:20.4]} 27. Rh1 {[%clk 0:00:17.1]} 27... axb3+ {[%clk
0:00:20.1]} 28. axb3 {[%clk 0:00:17.2]} 28... Rxa1 {[%clk 0:00:20.2]} 29. Rxa1
{[%clk 0:00:17.1]} 29... Bxh4 {[%clk 0:00:20.9]} 30. Bf2 {[%clk 0:00:15.6]}
30... Rf8 {[%clk 0:00:17.2]} 31. Be1 {[%clk 0:00:11.8]} 31... Bxg3 {[%clk
0:00:16.9]} 32. Bxg3 {[%clk 0:00:12.7]} 32... Bxe4+ {[%clk 0:00:17.3]} 33. Kd2
{[%clk 0:00:13.1]} 33... g5 {[%clk 0:00:17.7]} 34. Re1 {[%clk 0:00:12.8]} 34...
Rd8+ {[%clk 0:00:13.9]} 35. Kc1 {[%clk 0:00:08.4]} 35... Rd4 {[%clk 0:00:13]}
36. Bf2 {[%clk 0:00:08.9]} 36... Kf5 {[%clk 0:00:13.3]} 37. Bxd4 {[%clk
0:00:08.7]} 37... exd4 {[%clk 0:00:14.2]} 38. Rf1+ {[%clk 0:00:09.3]} 38... Kg4
{[%clk 0:00:14.3]} 39. Rf7 {[%clk 0:00:08.1]} 39... Bxg2 {[%clk 0:00:13.9]} 40.
Rxc7 {[%clk 0:00:08.6]} 40... h4 {[%clk 0:00:14.5]} 41. Kd2 {[%clk 0:00:08.3]}
41... h3 {[%clk 0:00:14.8]} 42. Rh7 {[%clk 0:00:08.2]} 42... Kg3 {[%clk
0:00:14.6]} 43. Kd3 {[%clk 0:00:07.1]} 43... h2 {[%clk 0:00:15.2]} 44. Kxd4
{[%clk 0:00:07.3]} 44... Bh3 {[%clk 0:00:15.7]} 0-1

[Event "Late-Titled-Tuesday-Blitz-June-18-2024"]
[Site "Chess.com"]
[Date "2024.06.18"]
[Round "7"]
[White "amintabatabaei"]
[Black "K_A_S_T_O_R"]
[Result "0-1"]
[WhiteElo "3022"]
[BlackElo "2851"]
[TimeControl "180+1"]
[EndTime "15:19:44 PDT"]
[Termination "K_A_S_T_O_R won by resignation"]

1. d4 {[%clk 0:02:54.4]} 1... Nf6 {[%clk 0:02:59.1]} 2. Nf3 {[%clk 0:02:55]}
2... e6 {[%clk 0:02:59.3]} 3. Bg5 {[%clk 0:02:54.6]} 3... h6 {[%clk 0:02:59]} 4.
Bh4 {[%clk 0:02:54.3]} 4... d6 {[%clk 0:02:58.6]} 5. Nbd2 {[%clk 0:02:53.4]}
5... g5 {[%clk 0:02:56.8]} 6. Bg3 {[%clk 0:02:53.7]} 6... Nh5 {[%clk 0:02:57.3]}
7. e4 {[%clk 0:02:53]} 7... Nxg3 {[%clk 0:02:57.2]} 8. hxg3 {[%clk 0:02:53.9]}
8... Bg7 {[%clk 0:02:57.6]} 9. c3 {[%clk 0:02:53.5]} 9... a6 {[%clk 0:02:56.5]}
10. Bd3 {[%clk 0:02:53.6]} 10... Nd7 {[%clk 0:02:49]} 11. Qe2 {[%clk 0:02:54]}
11... c5 {[%clk 0:02:46.7]} 12. Nc4 {[%clk 0:02:52.2]} 12... Qc7 {[%clk
0:02:43.8]} 13. d5 {[%clk 0:02:43.7]} 13... exd5 {[%clk 0:02:32.2]} 14. exd5+
{[%clk 0:02:42.7]} 14... Kf8 {[%clk 0:02:32.7]} 15. O-O-O {[%clk 0:02:32.4]}
15... Nf6 {[%clk 0:02:28.1]} 16. Rde1 {[%clk 0:02:29.6]} 16... b5 {[%clk
0:02:24.2]} 17. Ne3 {[%clk 0:02:23.4]} 17... Bd7 {[%clk 0:02:20]} 18. Nf5 {[%clk
0:02:14.7]} 18... Re8 {[%clk 0:02:15.1]} 19. Qd2 {[%clk 0:02:14.3]} 19... Nxd5
{[%clk 0:01:59.4]} 20. Rxe8+ {[%clk 0:02:07.6]} 20... Bxe8 {[%clk 0:01:56.8]}
21. Nxg7 {[%clk 0:02:08.5]} 21... Kxg7 {[%clk 0:01:56]} 22. Nxg5 {[%clk
0:02:09.1]} 22... Nf6 {[%clk 0:01:50.9]} 23. Nf3 {[%clk 0:01:49.2]} 23... Bd7
{[%clk 0:01:50.1]} 24. Qf4 {[%clk 0:01:40.2]} 24... Be6 {[%clk 0:01:46.2]} 25.
a3 {[%clk 0:01:18.9]} 25... Qe7 {[%clk 0:01:40.5]} 26. Nh4 {[%clk 0:01:12.4]}
26... Nd5 {[%clk 0:01:35.3]} 27. Qe4 {[%clk 0:00:39.1]} 27... Qg5+ {[%clk
0:01:33.2]} 28. Kb1 {[%clk 0:00:39]} 28... Nf6 {[%clk 0:01:29.8]} 29. Qf4 {[%clk
0:00:23.9]} 29... Qd5 {[%clk 0:01:23.5]} 30. Nf5+ {[%clk 0:00:18.5]} 30... Bxf5
{[%clk 0:01:23.5]} 31. Qxf5 {[%clk 0:00:19.4]} 31... Qxf5 {[%clk 0:01:02.9]} 32.
Bxf5 {[%clk 0:00:20.3]} 32... Re8 {[%clk 0:01:02.3]} 33. Bd3 {[%clk 0:00:16.6]}
33... d5 {[%clk 0:01:01.7]} 34. Kc1 {[%clk 0:00:12.7]} 34... c4 {[%clk 0:01:00]}
35. Bf5 {[%clk 0:00:12.1]} 35... Re2 {[%clk 0:00:59.7]} 36. Rf1 {[%clk
0:00:12.8]} 36... Ne4 {[%clk 0:00:57.7]} 37. Bxe4 {[%clk 0:00:11.2]} 37... dxe4
{[%clk 0:00:58.2]} 38. Rd1 {[%clk 0:00:04]} 38... Rxf2 {[%clk 0:00:57.5]} 39.
Rd6 {[%clk 0:00:04.9]} 39... e3 {[%clk 0:00:56.2]} 40. Kd1 {[%clk 0:00:04.6]}
40... Rxb2 {[%clk 0:00:52.7]} 41. Rxa6 {[%clk 0:00:05.2]} 41... Rxg2 {[%clk
0:00:50.3]} 42. Rb6 {[%clk 0:00:05.7]} 42... Rxg3 {[%clk 0:00:44.3]} 43. Rxb5
{[%clk 0:00:06.1]} 43... Kg6 {[%clk 0:00:42.8]} 44. a4 {[%clk 0:00:04.2]} 44...
f5 {[%clk 0:00:43.1]} 45. a5 {[%clk 0:00:04.2]} 45... f4 {[%clk 0:00:42.1]} 46.
a6 {[%clk 0:00:02.4]} 46... Rg1+ {[%clk 0:00:41.1]} 47. Ke2 {[%clk 0:00:01.9]}
47... Ra1 {[%clk 0:00:41.5]} 48. Kf3 {[%clk 0:00:01.6]} 48... Rxa6 {[%clk
0:00:40.5]} 49. Kxf4 {[%clk 0:00:02.3]} 49... Re6 {[%clk 0:00:38.5]} 50. Rb1
{[%clk 0:00:02.8]} 50... e2 {[%clk 0:00:38.2]} 51. Rg1+ {[%clk 0:00:03.4]} 51...
Kf6 {[%clk 0:00:37.9]} 52. Re1 {[%clk 0:00:04.2]} 52... Re5 {[%clk 0:00:37.4]}
53. Kf3 {[%clk 0:00:04.6]} 53... Kf5 {[%clk 0:00:37.9]} 54. Kf2 {[%clk
0:00:04.4]} 54... Kf4 {[%clk 0:00:38]} 0-1

[Event "Late-Titled-Tuesday-Blitz-June-18-2024"]
[Site "Chess.com"]
[Date "2024.06.18"]
[Round "7"]
[White "MagnusCarlsen"]
[Black "DenLaz"]
[Result "0-1"]
[WhiteElo "3192"]
[BlackElo "3116"]
[TimeControl "180+1"]
[EndTime "15:19:47 PDT"]
[Termination "DenLaz won on time"]

1. e4 {[%clk 0:03:00.2]} 1... e5 {[%clk 0:03:00]} 2. Nf3 {[%clk 0:03:00.4]} 2...
Nc6 {[%clk 0:03:00.7]} 3. Bb5 {[%clk 0:02:59.4]} 3... Nf6 {[%clk 0:03:01.2]} 4.
d3 {[%clk 0:02:59.7]} 4... Bc5 {[%clk 0:03:01.2]} 5. c3 {[%clk 0:03:00.2]} 5...
O-O {[%clk 0:03:01.1]} 6. O-O {[%clk 0:02:59.9]} 6... d5 {[%clk 0:03:01.6]} 7.
exd5 {[%clk 0:02:57.1]} 7... Qxd5 {[%clk 0:03:02.5]} 8. Bc4 {[%clk 0:02:57.2]}
8... Qd8 {[%clk 0:03:03.1]} 9. b4 {[%clk 0:02:56.5]} 9... Bd6 {[%clk 0:03:03.4]}
10. Nbd2 {[%clk 0:02:56.4]} 10... h6 {[%clk 0:03:02.9]} 11. Re1 {[%clk
0:02:55.1]} 11... Re8 {[%clk 0:03:01.1]} 12. a4 {[%clk 0:02:52.8]} 12... a6
{[%clk 0:03:01.3]} 13. Qb3 {[%clk 0:02:42.9]} 13... Be6 {[%clk 0:03:00]} 14. Ne4
{[%clk 0:02:42.9]} 14... Bf8 {[%clk 0:02:44.5]} 15. h3 {[%clk 0:02:39.4]} 15...
Qxd3 {[%clk 0:02:23.7]} 16. Nxf6+ {[%clk 0:02:26.7]} 16... gxf6 {[%clk
0:02:23.4]} 17. Bxe6 {[%clk 0:02:21.8]} 17... Rxe6 {[%clk 0:02:21.9]} 18. Rd1
{[%clk 0:02:19.3]} 18... Qg6 {[%clk 0:02:14]} 19. Be3 {[%clk 0:02:15.8]} 19...
f5 {[%clk 0:02:11.1]} 20. b5 {[%clk 0:02:08.5]} 20... Na5 {[%clk 0:02:03.2]} 21.
Qd5 {[%clk 0:02:08.2]} 21... f4 {[%clk 0:01:51.9]} 22. Nxe5 {[%clk 0:02:06.8]}
22... Qf5 {[%clk 0:00:53.9]} 23. Bd4 {[%clk 0:02:06.8]} 23... c5 {[%clk
0:00:54.3]} 24. Qf3 {[%clk 0:00:41.9]} 24... cxd4 {[%clk 0:00:53.1]} 25. cxd4
{[%clk 0:00:42.8]} 25... Rd8 {[%clk 0:00:46.7]} 26. Rac1 {[%clk 0:00:41.9]}
26... axb5 {[%clk 0:00:41.3]} 27. axb5 {[%clk 0:00:33.4]} 27... Bg7 {[%clk
0:00:41.3]} 28. g4 {[%clk 0:00:29.6]} 28... Qg5 {[%clk 0:00:38.2]} 29. Rc5
{[%clk 0:00:12.4]} 29... Bxe5 {[%clk 0:00:21.4]} 30. dxe5 {[%clk 0:00:09.8]}
30... Rxd1+ {[%clk 0:00:20.9]} 31. Qxd1 {[%clk 0:00:10.7]} 31... b6 {[%clk
0:00:21.2]} 32. Rc8+ {[%clk 0:00:09.3]} 32... Kg7 {[%clk 0:00:21.6]} 33. Qd7
{[%clk 0:00:05.3]} 33... Qxe5 {[%clk 0:00:20]} 34. Qd8 {[%clk 0:00:04.4]} 34...
Qe1+ {[%clk 0:00:20.3]} 35. Kg2 {[%clk 0:00:04.7]} 35... f3+ {[%clk 0:00:20.9]}
36. Kg3 {[%clk 0:00:02]} 36... Qg1+ {[%clk 0:00:20.3]} 37. Kf4 {[%clk
0:00:02.3]} 37... Qh2+ {[%clk 0:00:18.8]} 38. Kxf3 {[%clk 0:00:02.2]} 38...
Qxh3+ {[%clk 0:00:19.1]} 39. Kf4 {[%clk 0:00:01.5]} 39... Qh2+ {[%clk
0:00:19.2]} 40. Kf3 {[%clk 0:00:01.8]} 40... Rf6+ {[%clk 0:00:18.8]} 41. Ke4
{[%clk 0:00:02.5]} 41... Qf4+ {[%clk 0:00:18.3]} 0-1

[Event "Late-Titled-Tuesday-Blitz-June-18-2024"]
[Site "Chess.com"]
[Date "2024.06.18"]
[Round "7"]
[White "marvinguevara"]
[Black "CoachVadim"]
[Result "0-1"]
[WhiteElo "2162"]
[BlackElo "2393"]
[TimeControl "180+1"]
[EndTime "15:19:47 PDT"]
[Termination "CoachVadim won by resignation"]

1. e4 {[%clk 0:02:57.5]} 1... c5 {[%clk 0:03:00]} 2. Nf3 {[%clk 0:02:57.2]} 2...
d6 {[%clk 0:02:59.8]} 3. d4 {[%clk 0:02:56.9]} 3... cxd4 {[%clk 0:03:00.7]} 4.
Nxd4 {[%clk 0:02:57.5]} 4... Nf6 {[%clk 0:03:01.3]} 5. Nc3 {[%clk 0:02:57.8]}
5... a6 {[%clk 0:03:01.9]} 6. Be2 {[%clk 0:02:58.5]} 6... e5 {[%clk 0:03:02.1]}
7. Nb3 {[%clk 0:02:58.1]} 7... Be7 {[%clk 0:03:02.7]} 8. Be3 {[%clk 0:02:57.7]}
8... O-O {[%clk 0:03:02.7]} 9. g4 {[%clk 0:02:58.1]} 9... Be6 {[%clk 0:02:58.1]}
10. g5 {[%clk 0:02:57.2]} 10... Nfd7 {[%clk 0:02:57.3]} 11. h4 {[%clk 0:02:56]}
11... Nc6 {[%clk 0:02:53.5]} 12. Nd5 {[%clk 0:02:54.1]} 12... Rc8 {[%clk
0:02:31.9]} 13. Qd2 {[%clk 0:02:50.3]} 13... a5 {[%clk 0:02:18.4]} 14. a4 {[%clk
0:02:24.5]} 14... Bxd5 {[%clk 0:02:07.5]} 15. exd5 {[%clk 0:02:23.4]} 15... Nb4
{[%clk 0:02:05.6]} 16. c3 {[%clk 0:02:19.7]} 16... Na6 {[%clk 0:02:05.3]} 17. h5
{[%clk 0:02:10.5]} 17... Nac5 {[%clk 0:01:48.5]} 18. Nxc5 {[%clk 0:02:09.2]}
18... Nxc5 {[%clk 0:01:49.4]} 19. Bxc5 {[%clk 0:01:39.1]} 19... Rxc5 {[%clk
0:01:25.2]} 20. g6 {[%clk 0:01:38.1]} 20... Bg5 {[%clk 0:01:16.8]} 21. gxh7+
{[%clk 0:01:37.6]} 21... Kxh7 {[%clk 0:01:12.4]} 22. Qd3+ {[%clk 0:01:37.5]}
22... f5 {[%clk 0:01:10.6]} 23. Rg1 {[%clk 0:01:14.6]} 23... e4 {[%clk
0:00:52.9]} 24. Qg3 {[%clk 0:01:12.5]} 24... Bh6 {[%clk 0:00:44.9]} 25. Qg6+
{[%clk 0:01:10.3]} 25... Kh8 {[%clk 0:00:45.1]} 26. Qe6 {[%clk 0:00:57]} 26...
Rf6 {[%clk 0:00:31.9]} 27. Rg6 {[%clk 0:00:23.9]} 27... Rxe6 {[%clk 0:00:31.4]}
28. dxe6 {[%clk 0:00:24.8]} 28... Qe7 {[%clk 0:00:24.6]} 29. Rd1 {[%clk
0:00:22.2]} 29... d5 {[%clk 0:00:18.8]} 30. c4 {[%clk 0:00:15.2]} 30... dxc4
{[%clk 0:00:10.1]} 31. Rd7 {[%clk 0:00:14.7]} 31... Qe8 {[%clk 0:00:09.1]} 32.
Rxb7 {[%clk 0:00:10.6]} 32... Re5 {[%clk 0:00:04.7]} 33. Bxc4 {[%clk 0:00:08.5]}
33... Qxa4 {[%clk 0:00:03.5]} 34. b3 {[%clk 0:00:08.2]} 34... Qa1+ {[%clk
0:00:03.5]} 35. Ke2 {[%clk 0:00:08.3]} 35... f4 {[%clk 0:00:02.7]} 36. Rb8+
{[%clk 0:00:08.1]} 36... Kh7 {[%clk 0:00:03.1]} 37. Rh8+ {[%clk 0:00:09]} 37...
Kxh8 {[%clk 0:00:03.1]} 38. Rxh6+ {[%clk 0:00:09.7]} 38... gxh6 {[%clk
0:00:03.4]} 39. f3 {[%clk 0:00:05.3]} 39... Qb2+ {[%clk 0:00:03.6]} 40. Kf1
{[%clk 0:00:04.7]} 40... exf3 {[%clk 0:00:04.2]} 0-1

[Event "Late-Titled-Tuesday-Blitz-June-18-2024"]
[Site "Chess.com"]
[Date "2024.06.18"]
[Round "7"]
[White "Dr_troll"]
[Black "Rsnr"]
[Result "0-1"]
[WhiteElo "2653"]
[BlackElo "2901"]
[TimeControl "180+1"]
[EndTime "15:19:48 PDT"]
[Termination "Rsnr won by checkmate"]

1. c4 {[%clk 0:03:00.2]} 1... c6 {[%clk 0:02:59.6]} 2. Nc3 {[%clk 0:02:58.1]}
2... d5 {[%clk 0:03:00.5]} 3. e3 {[%clk 0:02:58.1]} 3... Nf6 {[%clk 0:03:01.2]}
4. Nf3 {[%clk 0:02:57.5]} 4... e6 {[%clk 0:03:01.8]} 5. b3 {[%clk 0:02:56.7]}
5... Bd6 {[%clk 0:03:02.4]} 6. Bb2 {[%clk 0:02:55.4]} 6... O-O {[%clk 0:03:03]}
7. Be2 {[%clk 0:02:52.7]} 7... a6 {[%clk 0:02:58.5]} 8. O-O {[%clk 0:02:52]}
8... e5 {[%clk 0:02:58.9]} 9. d3 {[%clk 0:02:44.6]} 9... Bg4 {[%clk 0:02:46.2]}
10. h3 {[%clk 0:02:44.3]} 10... Bh5 {[%clk 0:02:46.5]} 11. Rc1 {[%clk
0:02:42.5]} 11... Bg6 {[%clk 0:02:40.1]} 12. d4 {[%clk 0:02:38.9]} 12... e4
{[%clk 0:02:34.6]} 13. Ne5 {[%clk 0:02:39.5]} 13... Nbd7 {[%clk 0:02:34.1]} 14.
Nxg6 {[%clk 0:02:27.6]} 14... hxg6 {[%clk 0:02:35]} 15. f3 {[%clk 0:02:27.7]}
15... Qe7 {[%clk 0:02:29.6]} 16. fxe4 {[%clk 0:02:27.5]} 16... Nxe4 {[%clk
0:02:30.5]} 17. Nxe4 {[%clk 0:02:22.3]} 17... Qxe4 {[%clk 0:02:31.4]} 18. Qd3
{[%clk 0:02:21.1]} 18... Qe6 {[%clk 0:02:12.2]} 19. Bf3 {[%clk 0:02:17.7]} 19...
Rae8 {[%clk 0:02:08.4]} 20. Rfe1 {[%clk 0:02:16.3]} 20... f5 {[%clk 0:02:08.5]}
21. cxd5 {[%clk 0:02:14]} 21... cxd5 {[%clk 0:02:09.4]} 22. b4 {[%clk
0:02:07.8]} 22... Bxb4 {[%clk 0:01:55.9]} 23. Qb3 {[%clk 0:02:07.3]} 23... Qb6
{[%clk 0:01:46.5]} 24. Qxd5+ {[%clk 0:01:58.3]} 24... Rf7 {[%clk 0:01:45.7]} 25.
Re2 {[%clk 0:01:58]} 25... Bd6 {[%clk 0:01:27.7]} 26. Qxb7 {[%clk 0:01:54]}
26... Qxb7 {[%clk 0:01:04.1]} 27. Bxb7 {[%clk 0:01:53.6]} 27... Rfe7 {[%clk
0:01:04.6]} 28. Bxa6 {[%clk 0:01:44.7]} 28... Rxe3 {[%clk 0:01:02.3]} 29. Rxe3
{[%clk 0:01:44.7]} 29... Rxe3 {[%clk 0:01:03.2]} 30. Bc4+ {[%clk 0:01:45.4]}
30... Kh7 {[%clk 0:01:02.9]} 31. a4 {[%clk 0:01:45.6]} 31... Nb6 {[%clk
0:00:54.9]} 32. Bb5 {[%clk 0:01:45.4]} 32... Rb3 {[%clk 0:00:55.2]} 33. Rc2
{[%clk 0:01:39.3]} 33... Bg3 {[%clk 0:00:53.1]} 34. Rc3 {[%clk 0:01:31.8]} 34...
Rxb2 {[%clk 0:00:49.8]} 35. Rxg3 {[%clk 0:01:31.4]} 35... Nd5 {[%clk 0:00:50.7]}
36. Be8 {[%clk 0:01:20.6]} 36... Nf4 {[%clk 0:00:48.2]} 37. d5 {[%clk
0:01:17.7]} 37... Ne2+ {[%clk 0:00:45.5]} 38. Kf2 {[%clk 0:01:17]} 38... Nxg3+
{[%clk 0:00:46.4]} 39. Kxg3 {[%clk 0:01:17.7]} 39... Rd2 {[%clk 0:00:28.6]} 40.
Bc6 {[%clk 0:01:15.9]} 40... Kg8 {[%clk 0:00:15.8]} 41. Bb7 {[%clk 0:01:05.5]}
41... Ra2 {[%clk 0:00:10.5]} 42. Bc6 {[%clk 0:01:04.9]} 42... Kf7 {[%clk
0:00:08.9]} 43. d6 {[%clk 0:01:05.2]} 43... Ke6 {[%clk 0:00:05]} 44. d7 {[%clk
0:01:05.3]} 44... Ke7 {[%clk 0:00:05.4]} 45. Bb5 {[%clk 0:01:05.5]} 45... g5
{[%clk 0:00:05.4]} 46. Kf3 {[%clk 0:01:02.8]} 46... Ra3+ {[%clk 0:00:06]} 47.
Kf2 {[%clk 0:01:02.7]} 47... g6 {[%clk 0:00:06.4]} 48. Bc6 {[%clk 0:01:01.9]}
48... Ra2+ {[%clk 0:00:04.9]} 49. Kg3 {[%clk 0:01:01.5]} 49... Kd8 {[%clk
0:00:04.9]} 50. h4 {[%clk 0:00:57.4]} 50... Ra3+ {[%clk 0:00:04.4]} 51. Kh2
{[%clk 0:00:50.8]} 51... gxh4 {[%clk 0:00:05]} 52. Bb5 {[%clk 0:00:50.8]} 52...
g5 {[%clk 0:00:05.5]} 53. Bc6 {[%clk 0:00:50.8]} 53... f4 {[%clk 0:00:06.1]} 54.
Kg1 {[%clk 0:00:50]} 54... Kc7 {[%clk 0:00:06.4]} 55. Kf2 {[%clk 0:00:49.1]}
55... g4 {[%clk 0:00:06.2]} 56. Kf1 {[%clk 0:00:48.1]} 56... g3 {[%clk
0:00:06.4]} 57. Kg1 {[%clk 0:00:47.2]} 57... Ra1# {[%clk 0:00:06.6]} 0-1

[Event "Late-Titled-Tuesday-Blitz-June-18-2024"]
[Site "Chess.com"]
[Date "2024.06.18"]
[Round "7"]
[White "karinachess1"]
[Black "GM_dmitrij"]
[Result "1-0"]
[WhiteElo "2677"]
[BlackElo "3018"]
[TimeControl "180+1"]
[EndTime "15:19:52 PDT"]
[Termination "karinachess1 won on time"]

1. d4 {[%clk 0:03:00.9]} 1... Nf6 {[%clk 0:02:56]} 2. c4 {[%clk 0:03:01.1]} 2...
g6 {[%clk 0:02:50.9]} 3. Nc3 {[%clk 0:03:00.5]} 3... Bg7 {[%clk 0:02:50.6]} 4.
e4 {[%clk 0:03:00.6]} 4... O-O {[%clk 0:02:50.6]} 5. Nf3 {[%clk 0:02:58.9]} 5...
d6 {[%clk 0:02:44.7]} 6. h3 {[%clk 0:02:59.3]} 6... e5 {[%clk 0:02:37.9]} 7. d5
{[%clk 0:02:59.6]} 7... a5 {[%clk 0:02:37.8]} 8. Be3 {[%clk 0:02:56.5]} 8... Na6
{[%clk 0:02:37.3]} 9. Nd2 {[%clk 0:02:56.8]} 9... Kh8 {[%clk 0:02:24.7]} 10. g4
{[%clk 0:02:56.6]} 10... Ng8 {[%clk 0:02:24.2]} 11. Be2 {[%clk 0:02:41.3]} 11...
f5 {[%clk 0:02:20.8]} 12. f3 {[%clk 0:02:37.4]} 12... Bf6 {[%clk 0:02:16.8]} 13.
O-O {[%clk 0:02:35.9]} 13... Bg5 {[%clk 0:02:11.8]} 14. Bf2 {[%clk 0:02:36.1]}
14... Nf6 {[%clk 0:01:50.5]} 15. Nb3 {[%clk 0:02:19.5]} 15... b6 {[%clk
0:01:36.3]} 16. Kg2 {[%clk 0:02:15.9]} 16... Bf4 {[%clk 0:01:29.6]} 17. Bd3
{[%clk 0:02:03.8]} 17... fxg4 {[%clk 0:01:16.5]} 18. hxg4 {[%clk 0:02:03.9]}
18... h5 {[%clk 0:01:14.9]} 19. Rh1 {[%clk 0:02:04.1]} 19... Kg7 {[%clk
0:01:14.8]} 20. Be2 {[%clk 0:02:04.7]} 20... Rh8 {[%clk 0:01:08.8]} 21. Bh4
{[%clk 0:01:59.3]} 21... g5 {[%clk 0:00:59.9]} 22. Bg3 {[%clk 0:01:59.6]} 22...
Bxg3 {[%clk 0:00:52.5]} 23. Kxg3 {[%clk 0:02:00.5]} 23... h4+ {[%clk 0:00:52.9]}
24. Kh3 {[%clk 0:01:58.8]} 24... Nh7 {[%clk 0:00:46.5]} 25. Nd2 {[%clk
0:01:52.2]} 25... Nf8 {[%clk 0:00:45.7]} 26. Nf1 {[%clk 0:01:44.8]} 26... Ng6
{[%clk 0:00:43.5]} 27. Ne3 {[%clk 0:01:45.2]} 27... Bd7 {[%clk 0:00:34.4]} 28.
Rg1 {[%clk 0:01:38.2]} 28... Nc5 {[%clk 0:00:31.2]} 29. Kh2 {[%clk 0:01:34.9]}
29... Qf6 {[%clk 0:00:24.1]} 30. Nf5+ {[%clk 0:01:34]} 30... Kf7 {[%clk
0:00:24.1]} 31. Qd2 {[%clk 0:01:32.4]} 31... Nf4 {[%clk 0:00:23.7]} 32. b3
{[%clk 0:01:29.2]} 32... Rhd8 {[%clk 0:00:19.6]} 33. Rab1 {[%clk 0:01:26.9]}
33... c6 {[%clk 0:00:17.7]} 34. dxc6 {[%clk 0:01:21.7]} 34... Bxc6 {[%clk
0:00:18.6]} 35. Nd5 {[%clk 0:01:20.7]} 35... Bxd5 {[%clk 0:00:17.9]} 36. cxd5
{[%clk 0:01:20.5]} 36... Rac8 {[%clk 0:00:16.3]} 37. Bb5 {[%clk 0:01:19.9]}
37... Rc7 {[%clk 0:00:15]} 38. Rbc1 {[%clk 0:01:19.1]} 38... Kg6 {[%clk
0:00:14]} 39. Rc3 {[%clk 0:01:14.5]} 39... Rdc8 {[%clk 0:00:13.2]} 40. Rgc1
{[%clk 0:01:14.8]} 40... Qf8 {[%clk 0:00:10.9]} 41. a3 {[%clk 0:01:13.6]} 41...
Qd8 {[%clk 0:00:10.5]} 42. Qc2 {[%clk 0:01:08.3]} 42... Na6 {[%clk 0:00:07.4]}
43. Bc6 {[%clk 0:00:53.5]} 43... Nb8 {[%clk 0:00:06.5]} 44. b4 {[%clk
0:00:52.8]} 44... axb4 {[%clk 0:00:06.2]} 45. axb4 {[%clk 0:00:53.7]} 45... b5
{[%clk 0:00:06.9]} 46. Qd2 {[%clk 0:00:36.4]} 46... Qf6 {[%clk 0:00:05.1]} 47.
Bxb5 {[%clk 0:00:29.2]} 47... Qd8 {[%clk 0:00:03.3]} 48. Bc6 {[%clk 0:00:24.6]}
48... Ra7 {[%clk 0:00:03.1]} 49. Qf2 {[%clk 0:00:21.2]} 49... Rcc7 {[%clk
0:00:02.1]} 50. b5 {[%clk 0:00:21.4]} 1-0